[Event "9th Amsterdam Science Park A 2019"]
[Site "Amsterdam"]
[Date "2019.07.12"]
[Round "7.12"]
[White "Vereggen, Lars"]
[Black "Van der Velde, Henk"]
[Result "1-0"]
[ECO "D12"]
[WhiteElo "2370"]
[BlackElo "2135"]
[Annotator "NA"]
[PlyCount "95"]
[EventDate "2019.07.06"]
[EventType "swiss"]
[EventCountry "NED"]
[SourceTitle "playchess.com"]
[Source "ChessBase"]
[SourceQuality "1"]
[TimeControl "40/5400+30:1800+30"]

1. d4 {[%emt 0:00:00]} d5 {[%emt 0:00:00]} 2. Nf3 {[%emt 0:00:09]} Nf6 3. c4 {[%emt 0:00:37]} c6 {[%emt 0:00:06]} 4. e3 {[%emt 0:00:08]} Bf5 {[%emt 0:00:12]} 5. Nc3 {[%emt 0:00:17]} e6 {[%emt 0:00:15]} 6. Nh4 {[%emt 0:00:20]} Be4 {[%emt 0:00:41]} 7. f3 {[%emt 0:00:39]} Bg6 {[%emt 0:00:12]} 8. Qb3 {[%emt 0:00:54]} Qc7 {[%emt 0:00:16]} 9. cxd5 {[%emt 0:05:45]} cxd5 {[%emt 0:00:18]} 10. Bd2 {[%emt 0:01:33]} Nc6 {[%emt 0:00:39]} 11. g3 {[%emt 0:02:15]} Be7 {[%emt 0:03:08]} 12. Ng2 {[%emt 0:09:56]} h6 {[%emt 0:03:52]} 13. Nf4 {[%emt 0:00:44]} Bh7 {[%emt 0:00:40]} 14. Nb5 {[%emt 0:01:21]} Qd7 {[%emt 0:14:31]} 15. Nd3 {[%emt 0:00:27]} Bxd3 {[%emt 0:17:28]} 16. Bxd3 {[%emt 0:00:26]} a6 {[%emt 0:01:20]} 17. Nc3 b5 {[%emt 0:10:02]} 18. a4 {[%emt 0:00:56]} b4 {[%emt 0:02:56]} 19. Ne2 {[%emt 0:01:13]} O-O {[%emt 0:01:22]} 20. O-O {[%emt 0:00:12]} Na5 {[%emt 0:04:18]} 21. Qd1 {[%emt 0:00:22]} Nc4 {[%emt 0:00:34]} 22. Bc1 {[%emt 0:00:48]} a5 {[%emt 0:06:27]} 23. b3 Nd6 24. Ra2 {[%emt 0:05:18]} Qb7 {[%emt 0:02:58]} 25. Bb1 {[%emt 0:00:50]} g6 {[%emt 0:08:33]} 26. Nf4 {[%emt 0:01:18]} Rfc8 {[%emt 0:02:03]} 27. g4 {[%emt 0:00:40]} Bf8 28. Rg2 {[%emt 0:02:29]} Bg7 {[%emt 0:06:01]} 29. h4 {[%emt 0:01:50]} Nd7 {[%emt 0:01:59]} 30. Bb2 {[%emt 0:00:24]} Rd8 {[%emt 0:07:08]} 31. Kh1 {[%emt 0:02:44]} Ne8 {[%emt 0:02:29]} 32. Nd3 {[%emt 0:02:34]} Qc7 33. h5 g5 {[%emt 0:02:16]} 34. f4 {[%emt 0:01:24]} Nd6 {[%emt 0:01:23]} 35. fxg5 {[%emt 0:01:48]} hxg5 {[%emt 0:00:02]} 36. Qf3 {[%emt 0:00:28]} Nf6 {[%emt 0:00:35]} 37. Nc5 {[%emt 0:03:15]} Qe7 {[%emt 0:00:37]} 38. h6 {[%emt 0:01:04]} Bh8 {[%emt 0:00:02]} 39. h7+ {[%emt 0:03:55]} Kf8 {[%emt 0:01:44]} 40. Qh3 {[%emt 0:01:15]} Ke8 {[%emt 0:01:37]} 41. Rgf2 {[%emt 0:30:22]} Nfe4 {[%emt 0:08:54]} 42. Bxe4 {[%emt 0:00:00]} Nxe4 {[%emt 0:03:27]} 43. Nxe4 {[%emt 0:00:00]} dxe4 {[%emt 0:00:02]} 44. Qh5 {[%emt 0:00:00]} Ra7 {[%emt 0:03:28]} 45. d5 {[%emt 0:00:00]} e5 {[%emt 0:02:10]} 46. Rf5 {[%emt 0:00:00]} Rd6 {[%emt 0:09:14]} 47. Bxe5 {[%emt 0:00:00]} Rg6 {[%emt 0:04:51]} 48. Bxh8 {[%emt 0:00:00]} 1-0

[Event "9th Amsterdam Science Park A 2019"]
[Site "Amsterdam"]
[Date "2019.07.13"]
[Round "8.1"]
[White "Ulybin, Mikhail"]
[Black "Van der Lende, Ilias"]
[Result "1/2-1/2"]
[ECO "C07"]
[WhiteElo "2469"]
[BlackElo "2350"]
[Annotator "ChessBase"]
[PlyCount "74"]
[EventDate "2019.07.06"]
[EventType "swiss"]
[EventCountry "NED"]
[SourceTitle "playchess.com"]
[Source "ChessBase"]
[SourceQuality "1"]
[TimeControl "40/5400+30:1800+30"]

1. e4 {[%emt 0:05:42]} e6 {[%emt 0:00:07]} 2. d4 {[%emt 0:00:50]} d5 {[%emt 0:00:07]} 3. Nd2 {[%emt 0:01:17]} c5 {[%emt 0:00:44]} 4. Ngf3 {[%emt 0:02:41]} cxd4 {[%emt 0:03:06]} 5. Nxd4 {[%emt 0:01:59]} Nc6 {[%emt 0:00:08]} 6. Bb5 {[%emt 0:01:10]} Bd7 {[%emt 0:00:13]} 7. Nxc6 {[%emt 0:01:25]} Bxc6 {[%emt 0:04:11]} 8. Bxc6+ {[%emt 0:01:43]} bxc6 {[%emt 0:00:07]} 9. c4 {[%emt 0:01:50]} Nf6 {[%emt 0:00:56]} 10. Qa4 {[%emt 0:04:52]} Qc7 {[%emt 0:05:53]} 11. exd5 {[%emt 0:26:44]} exd5 {[%emt 0:00:17]} 12. O-O {[%emt 0:04:52]} Be7 {[%emt 0:00:55]} 13. cxd5 {[%emt 0:03:47]} Nxd5 {[%emt 0:00:16]} 14. Ne4 {[%emt 0:02:36]} O-O {[%emt 0:02:11]} 15. Bd2 {[%emt 0:07:58]} Rab8 {[%emt 0:03:44]} 16. Qc2 {[%emt 0:09:33]} Qe5 {[%emt 0:14:49]} 17. b3 {[%emt 0:02:13]} Rfc8 {[%emt 0:12:01]} 18. Rfe1 {[%emt 0:01:57]} Nb4 {[%emt 0:06:39]} 19. Qc4 {[%emt 0:07:08]} Qd5 {[%emt 0:01:27]} 20. Bf4 {[%emt 0:04:52]} Rb6 {[%emt 0:07:19]} 21. Red1 {[%emt 0:02:49]} Qxc4 {[%emt 0:04:55]} 22. bxc4 {[%emt 0:00:05]} c5 {[%emt 0:00:08]} 23. Rd7 {[%emt 0:01:34]} Re6 {[%emt 0:00:23]} 24. f3 {[%emt 0:00:45]} f5 {[%emt 0:03:31]} 25. Nd6 {[%emt 0:00:55]} Rf8 {[%emt 0:01:08]} 26. Rd1 {[%emt 0:00:35]} Nxa2 {[%emt 0:00:50]} 27. Nb5 {[%emt 0:00:37]} Bf6 {[%emt 0:02:35]} 28. Bd6 {[%emt 0:00:50]} Rfe8 {[%emt 0:07:17]} 29. Bxc5 {[%emt 0:00:29]} a5 {[%emt 0:01:06]} 30. Nd6 {[%emt 0:00:36]} Re1+ {[%emt 0:01:25]} 31. Rxe1 {[%emt 0:00:07]} Rxe1+ {[%emt 0:00:04]} 32. Kf2 {[%emt 0:00:06]} Rd1 {[%emt 0:00:11]} 33. Rc7 {[%emt 0:00:53]} h6 {[%emt 0:03:18]} 34. f4 {[%emt 0:00:41]} Rd2+ {[%emt 0:09:06]} 35. Kf3 {[%emt 0:00:11]} Rd3+ {[%emt 0:00:24]} 36. Kf2 {[%emt 0:00:26]} Rd2+ {[%emt 0:00:04]} 37. Kf3 {[%emt 0:00:29]} Rd3+ {[%emt 0:00:09] Ke4} 1/2-1/2

[Event "9th Amsterdam Science Park A 2019"]
[Site "Amsterdam"]
[Date "2019.07.13"]
[Round "8.2"]
[White "Ten Hertog, Hugo"]
[Black "Arnaudov, G. Petar"]
[Result "1-0"]
[ECO "A00"]
[WhiteElo "2484"]
[BlackElo "2478"]
[Annotator "ChessBase"]
[PlyCount "81"]
[EventDate "2019.07.06"]
[EventType "swiss"]
[EventCountry "NED"]
[SourceTitle "playchess.com"]
[Source "ChessBase"]
[SourceQuality "1"]
[TimeControl "40/5400+30:1800+30"]

1. g3 {[%emt 0:00:55]} d5 {[%emt 0:04:03]} 2. Bg2 {[%emt 0:00:06]} Nf6 {[%emt 0:00:20]} 3. d3 {[%emt 0:00:36]} c5 {[%emt 0:01:06]} 4. Nf3 {[%emt 0:01:04]} Nc6 {[%emt 0:00:23]} 5. O-O {[%emt 0:00:08]} e6 {[%emt 0:01:58]} 6. c4 {[%emt 0:12:28]} Be7 {[%emt 0:01:44]} 7. a3 {[%emt 0:08:51]} O-O {[%emt 0:02:16]} 8. Qc2 {[%emt 0:00:19]} b6 {[%emt 0:11:59]} 9. b4 {[%emt 0:08:24]} Bb7 {[%emt 0:00:32]} 10. bxc5 {[%emt 0:05:04]} bxc5 {[%emt 0:08:59]} 11. Nbd2 {[%emt 0:03:45]} d4 {[%emt 0:03:22]} 12. Rb1 {[%emt 0:03:00]} Rb8 {[%emt 0:00:48]} 13. Nb3 {[%emt 0:14:58]} Nd7 {[%emt 0:03:03]} 14. e3 {[%emt 0:02:43]} e5 {[%emt 0:02:12]} 15. Re1 {[%emt 0:02:21]} Bd6 {[%emt 0:02:31]} 16. exd4 {[%emt 0:06:00]} exd4 {[%emt 0:02:39]} 17. Ng5 {[%emt 0:06:59]} Nf6 {[%emt 0:07:59]} 18. Bd2 {[%emt 0:05:47]} h6 {[%emt 0:01:28]} 19. Nf3 {[%emt 0:08:04]} Ba8 {[%emt 0:05:36]} 20. Qc1 {[%emt 0:01:30]} Nd7 {[%emt 0:08:18]} 21. Bf4 {[%emt 0:01:16]} Qf6 {[%emt 0:00:43]} 22. Bxd6 {[%emt 0:01:31]} Qxd6 {[%emt 0:00:06]} 23. Qf4 {[%emt 0:00:12]} Qxf4 {[%emt 0:02:32]} 24. gxf4 {[%emt 0:00:04]} g6 {[%emt 0:02:01]} 25. Nfd2 {[%emt 0:02:08]} Rb6 {[%emt 0:04:10]} 26. Bh3 {[%emt 0:02:49]} f5 {[%emt 0:01:22]} 27. Bg2 {[%emt 0:01:17]} Kg7 {[%emt 0:02:37]} 28. Re6 {[%emt 0:00:32]} Rf6 {[%emt 0:05:51]} 29. Rbe1 {[%emt 0:00:13]} a5 {[%emt 0:03:24]} 30. a4 {[%emt 0:01:16]} Rb8 {[%emt 0:01:19]} 31. Bd5 {[%emt 0:00:29]} Rc8 {[%emt 0:02:24]} 32. Re7+ {[%emt 0:00:31]} Nxe7 {[%emt 0:00:16]} 33. Rxe7+ {[%emt 0:00:03]} Kf8 {[%emt 0:00:12]} 34. Rxd7 {[%emt 0:00:05]} Bc6 {[%emt 0:00:21]} 35. Rh7 {[%emt 0:01:02]} Bxd5 {[%emt 0:01:09]} 36. cxd5 {[%emt 0:00:03]} Kg8 {[%emt 0:00:09]} 37. Rd7 {[%emt 0:00:34]} Rf7 {[%emt 0:00:18]} 38. Rxf7 {[%emt 0:00:16]} Kxf7 {[%emt 0:00:03]} 39. Nc4 {[%emt 0:00:22]} Ke7 {[%emt 0:00:30]} 40. Nbxa5 {[%emt 0:00:08]} Ra8 {[%emt 0:00:09]} 41. Nc6+ {[%emt 0:30:05]} 1-0

[Event "9th Amsterdam Science Park A 2019"]
[Site "Amsterdam"]
[Date "2019.07.13"]
[Round "8.3"]
[White "Bosboom, Manuel"]
[Black "Meshkovs, Nikita"]
[Result "0-1"]
[ECO "A00"]
[WhiteElo "2418"]
[BlackElo "2550"]
[Annotator "ChessBase"]
[PlyCount "80"]
[EventDate "2019.07.06"]
[EventType "swiss"]
[EventCountry "NED"]
[SourceTitle "playchess.com"]
[Source "ChessBase"]
[SourceQuality "1"]
[TimeControl "40/5400+30:1800+30"]

1. g3 {[%emt 0:00:41]} c5 {[%emt 0:00:19]} 2. Bg2 {[%emt 0:00:22]} Nc6 {[%emt 0:00:52]} 3. c4 {[%emt 0:06:01]} g6 {[%emt 0:02:01]} 4. b3 {[%emt 0:01:34]} Bg7 {[%emt 0:06:30]} 5. Nc3 {[%emt 0:00:49]} e6 {[%emt 0:00:51]} 6. Bxc6 {[%emt 0:01:07]} bxc6 {[%emt 0:00:42]} 7. Bb2 {[%emt 0:01:43]} d6 {[%emt 0:04:55]} 8. Qc2 {[%emt 0:02:39]} e5 {[%emt 0:01:45]} 9. O-O-O {[%emt 0:00:56]} Nh6 {[%emt 0:03:36]} 10. f4 {[%emt 0:03:02]} O-O {[%emt 0:11:36]} 11. fxe5 {[%emt 0:04:29]} dxe5 {[%emt 0:00:40]} 12. Nf3 {[%emt 0:05:07]} f5 {[%emt 0:06:26]} 13. Na4 {[%emt 0:03:09]} Re8 {[%emt 0:08:44]} 14. Rhf1 {[%emt 0:17:24]} Qe7 {[%emt 0:21:54]} 15. Ba3 {[%emt 0:06:15]} e4 {[%emt 0:02:44]} 16. Ne1 {[%emt 0:00:53]} Ng4 {[%emt 0:03:30]} 17. Bxc5 {[%emt 0:02:04]} Qc7 {[%emt 0:04:11]} 18. h3 {[%emt 0:01:34]} Nf6 {[%emt 0:00:11]} 19. Rg1 {[%emt 0:02:24]} Nh5 {[%emt 0:00:21]} 20. Bf2 {[%emt 0:02:41]} Be5 {[%emt 0:00:33]} 21. d4 {[%emt 0:06:42]} e3 {[%emt 0:04:50]} 22. Bxe3 {[%emt 0:01:05]} Bxg3 {[%emt 0:00:02]} 23. Bh6 {[%emt 0:04:10]} f4 {[%emt 0:00:14]} 24. d5 {[%emt 0:06:26]} Bf5 {[%emt 0:01:03]} 25. Qc3 {[%emt 0:07:29]} Rad8 {[%emt 0:03:50]} 26. Nf3 {[%emt 0:02:47]} Re3 {[%emt 0:03:20]} 27. Qd2 {[%emt 0:01:57]} cxd5 {[%emt 0:01:30]} 28. Nc3 {[%emt 0:00:38]} d4 {[%emt 0:01:05]} 29. Nb5 {[%emt 0:01:14]} Qc5 {[%emt 0:00:18]} 30. Qa5 {[%emt 0:00:57]} Rde8 {[%emt 0:04:51]} 31. Nfxd4 {[%emt 0:01:49]} Bxh3 {[%emt 0:00:42]} 32. Rd2 {[%emt 0:02:24]} Nf6 {[%emt 0:00:22]} 33. Qxa7 {[%emt 0:03:13]} Qxa7 {[%emt 0:01:18]} 34. Nxa7 {[%emt 0:00:02]} Ng4 {[%emt 0:00:28]} 35. Rxg3 {[%emt 0:00:37]} fxg3 {[%emt 0:00:02]} 36. Bxe3 {[%emt 0:00:07]} Nxe3 {[%emt 0:00:01]} 37. Nf3 {[%emt 0:01:22]} Bg4 {[%emt 0:00:01]} 38. Ng1 {[%emt 0:00:34]} h5 {[%emt 0:00:01]} 39. c5 {[%emt 0:00:03]} h4 {[%emt 0:00:10]} 40. Rd6 {[%emt 0:00:54]} Kg7 {[%emt 0:00:58]} 0-1

[Event "9th Amsterdam Science Park A 2019"]
[Site "Amsterdam"]
[Date "2019.07.13"]
[Round "8.4"]
[White "Gleizerov, Evgeny"]
[Black "Zwirs, Nico"]
[Result "1-0"]
[ECO "E97"]
[WhiteElo "2498"]
[BlackElo "2380"]
[Annotator "ChessBase"]
[PlyCount "91"]
[EventDate "2019.07.06"]
[EventType "swiss"]
[EventCountry "NED"]
[SourceTitle "playchess.com"]
[Source "ChessBase"]
[SourceQuality "1"]
[TimeControl "40/5400+30:1800+30"]

1. d4 {[%emt 0:00:00]} Nf6 {[%emt 0:00:43]} 2. c4 {[%emt 0:00:00]} g6 {[%emt 0:00:10]} 3. Nc3 {[%emt 0:00:00]} Bg7 {[%emt 0:00:08]} 4. e4 {[%emt 0:00:00]} d6 {[%emt 0:00:03]} 5. Nf3 {[%emt 0:00:00]} O-O {[%emt 0:00:16]} 6. Be2 {[%emt 0:00:00]} e5 {[%emt 0:00:12]} 7. O-O {[%emt 0:00:04]} Nc6 {[%emt 0:00:05]} 8. d5 {[%emt 0:00:04]} Ne7 {[%emt 0:00:02]} 9. Nd2 {[%emt 0:00:07]} c5 {[%emt 0:04:58]} 10. dxc6 {[%emt 0:01:41]} bxc6 {[%emt 0:00:22]} 11. Nb3 {[%emt 0:00:34]} a5 {[%emt 0:02:50]} 12. a4 {[%emt 0:00:27]} Rb8 {[%emt 0:00:59]} 13. Ra3 {[%emt 0:01:41]} Be6 {[%emt 0:01:42]} 14. f4 {[%emt 0:08:51]} Qb6+ {[%emt 0:24:50]} 15. Kh1 {[%emt 0:00:43]} Rfd8 {[%emt 0:00:19]} 16. fxe5 {[%emt 0:04:07]} dxe5 {[%emt 0:00:18]} 17. Qe1 {[%emt 0:00:16]} Nd7 {[%emt 0:20:56]} 18. Nd1 {[%emt 0:04:47]} Qa6 {[%emt 0:10:31]} 19. Nxa5 {[%emt 0:08:27]} Ra8 {[%emt 0:10:02]} 20. Bd2 {[%emt 0:09:53]} Nc5 {[%emt 0:02:16]} 21. Nf2 {[%emt 0:15:21]} f5 {[%emt 0:16:01]} 22. Bb4 {[%emt 0:03:48]} Qb6 {[%emt 0:00:35]} 23. Bxc5 {[%emt 0:00:25]} Qxc5 {[%emt 0:00:21]} 24. Nb7 {[%emt 0:00:09]} Qb6 {[%emt 0:00:57]} 25. Nxd8 {[%emt 0:00:13]} Rxd8 {[%emt 0:00:05]} 26. b4 {[%emt 0:02:21]} Bh6 {[%emt 0:01:38]} 27. a5 {[%emt 0:00:59]} Qa7 {[%emt 0:00:15]} 28. Rd3 {[%emt 0:03:47]} Ra8 {[%emt 0:00:33]} 29. Qc3 {[%emt 0:01:37]} Qc7 {[%emt 0:01:26]} 30. Ra1 {[%emt 0:01:31]} Bf7 {[%emt 0:00:53]} 31. b5 {[%emt 0:01:44]} cxb5 {[%emt 0:00:25]} 32. cxb5 {[%emt 0:00:43]} Qxc3 {[%emt 0:00:35]} 33. Rxc3 {[%emt 0:00:02]} Bd2 {[%emt 0:00:04]} 34. Rc7 {[%emt 0:02:20]} Nc8 {[%emt 0:00:11]} 35. Rd1 {[%emt 0:01:12]} Bg5 {[%emt 0:01:18]} 36. b6 {[%emt 0:00:24]} Rb8 {[%emt 0:00:07]} 37. Rdd7 {[%emt 0:02:25]} Be6 {[%emt 0:00:24]} 38. Bc4 {[%emt 0:00:21]} Bxc4 {[%emt 0:00:58]} 39. Rxc4 {[%emt 0:00:18]} Ne7 {[%emt 0:00:17]} 40. b7 {[%emt 0:00:25]} Kf7 {[%emt 0:00:06]} 41. a6 {[%emt 0:30:18]} Be3 {[%emt 0:30:04]} 42. Rcc7 {[%emt 0:00:24]} Bxf2 {[%emt 0:00:14]} 43. Rxe7+ {[%emt 0:00:07]} Kf6 {[%emt 0:00:01]} 44. Rc8 {[%emt 0:00:23]} fxe4 {[%emt 0:00:37]} 45. Rxb8 {[%emt 0:00:46]} e3 {[%emt 0:00:13]} 46. Rxe5 {[%emt 0:00:10]} 1-0

[Event "9th Amsterdam Science Park A 2019"]
[Site "Amsterdam"]
[Date "2019.07.13"]
[Round "8.5"]
[White "Keuning, Selwin"]
[Black "De Rover, Yong Hoon"]
[Result "0-1"]
[ECO "B08"]
[WhiteElo "2078"]
[BlackElo "2391"]
[Annotator "NA"]
[PlyCount "50"]
[EventDate "2019.07.06"]
[EventType "swiss"]
[EventCountry "NED"]
[SourceTitle "playchess.com"]
[Source "ChessBase"]
[SourceQuality "1"]
[TimeControl "40/5400+30:1800+30"]

1. e4 {[%emt 0:00:00]} d6 2. d4 {[%emt 0:00:00]} Nf6 {[%emt 0:00:28]} 3. Nc3 {[%emt 0:00:00]} g6 {[%emt 0:00:09]} 4. Nf3 {[%emt 0:00:09]} Bg7 {[%emt 0:00:26]} 5. Be2 {[%emt 0:00:08]} O-O {[%emt 0:00:32]} 6. O-O {[%emt 0:00:16]} c6 {[%emt 0:02:44]} 7. a4 {[%emt 0:00:29]} Qc7 {[%emt 0:00:35]} 8. Be3 {[%emt 0:01:54]} e5 {[%emt 0:02:15]} 9. dxe5 {[%emt 0:00:27]} dxe5 {[%emt 0:00:07]} 10. Bc4 {[%emt 0:03:03]} Nh5 {[%emt 0:01:54]} 11. a5 {[%emt 0:08:02]} Nf4 {[%emt 0:02:11]} 12. Nd2 {[%emt 0:07:46]} Qe7 {[%emt 0:03:45]} 13. Re1 {[%emt 0:10:42]} Nd7 {[%emt 0:03:57]} 14. g3 {[%emt 0:03:45]} Ne6 {[%emt 0:02:48]} 15. Ne2 {[%emt 0:05:45]} Rd8 {[%emt 0:06:07]} 16. c3 {[%emt 0:02:57]} h5 {[%emt 0:04:58]} 17. Qb3 {[%emt 0:05:13]} Ndc5 {[%emt 0:05:14]} 18. Qa3 {[%emt 0:02:13]} Bf8 {[%emt 0:00:42]} 19. b4 {[%emt 0:06:30]} Nd3 {[%emt 0:03:37]} 20. Red1 {[%emt 0:01:12]} Qf6 {[%emt 0:02:23]} 21. f3 {[%emt 0:21:46]} Nef4 {[%emt 0:05:42]} 22. Nc1 {[%emt 0:06:15]} Bh6 {[%emt 0:23:54]} 23. Nxd3 {[%emt 0:03:46]} Nh3+ {[%emt 0:01:16]} 24. Kg2 {[%emt 0:00:05]} Bxe3 {[%emt 0:00:06]} 25. Nf1 {[%emt 0:00:49]} Ng5 {[%emt 0:01:44]} 0-1

[Event "9th Amsterdam Science Park A 2019"]
[Site "Amsterdam"]
[Date "2019.07.13"]
[Round "8.6"]
[White "De Groote, Ewoud"]
[Black "Dimitrijeski, Kristian"]
[Result "0-1"]
[ECO "D02"]
[WhiteElo "2225"]
[BlackElo "2186"]
[Annotator "NA"]
[PlyCount "140"]
[EventDate "2019.07.06"]
[EventType "swiss"]
[EventCountry "NED"]
[SourceTitle "playchess.com"]
[Source "ChessBase"]
[SourceQuality "1"]
[TimeControl "40/5400+30:1800+30"]

1. d4 {[%emt 0:00:00]} d5 {[%emt 0:00:00]} 2. Nf3 {[%emt 0:00:00]} Nf6 {[%emt 0:00:00]} 3. c4 {[%emt 0:00:00]} c6 {[%emt 0:00:00]} 4. Qc2 {[%emt 0:00:00]} dxc4 {[%emt 0:00:27]} 5. e4 {[%emt 0:00:00]} b5 {[%emt 0:08:08]} 6. b3 {[%emt 0:00:00]} cxb3 {[%emt 0:01:53]} 7. axb3 {[%emt 0:00:00]} g6 {[%emt 0:06:55]} 8. Bd2 {[%emt 0:02:29]} Bg7 {[%emt 0:08:48]} 9. Ba5 {[%emt 0:03:22]} Qd7 {[%emt 0:00:08]} 10. Nbd2 {[%emt 0:01:41]} O-O {[%emt 0:00:40]} 11. Rd1 {[%emt 0:22:18]} Qe8 {[%emt 0:05:27]} 12. h3 {[%emt 0:07:33]} Bb7 {[%emt 0:03:36]} 13. Bd3 {[%emt 0:01:15]} Nbd7 {[%emt 0:01:28]} 14. e5 {[%emt 0:08:17]} Nd5 {[%emt 0:00:48]} 15. O-O {[%emt 0:01:04]} Rc8 {[%emt 0:09:34]} 16. Rfe1 {[%emt 0:03:41]} c5 {[%emt 0:07:51]} 17. Bxb5 {[%emt 0:03:04]} cxd4 {[%emt 0:00:10]} 18. Nc4 {[%emt 0:00:32]} Nc7 {[%emt 0:11:43]} 19. Ba4 {[%emt 0:09:38]} Bxf3 {[%emt 0:00:09]} 20. Rxd4 {[%emt 0:00:08]} Nd5 {[%emt 0:06:39]} 21. gxf3 {[%emt 0:08:38]} e6 {[%emt 0:00:23]} 22. Qd2 {[%emt 0:01:16]} Qe7 {[%emt 0:01:17]} 23. Bb4 {[%emt 0:10:46]} Qxb4 {[%emt 0:01:49]} 24. Qxb4 {[%emt 0:00:07]} Nxb4 {[%emt 0:00:06]} 25. Rxd7 {[%emt 0:00:03]} a6 {[%emt 0:07:34]} 26. Re4 {[%emt 0:07:26]} Rc5 {[%emt 0:04:23]} 27. f4 {[%emt 0:01:29]} Nd5 {[%emt 0:02:39]} 28. Ne3 {[%emt 0:02:26]} Nc3 {[%emt 0:01:47]} 29. Rb4 {[%emt 0:00:42]} a5 {[%emt 0:00:48]} 30. Rc4 {[%emt 0:01:37]} Ne2+ {[%emt 0:00:16]} 31. Kf1 {[%emt 0:00:57]} Rxc4 {[%emt 0:00:21]} 32. Nxc4 {[%emt 0:00:01]} Nxf4 {[%emt 0:00:10]} 33. Nxa5 {[%emt 0:00:29]} Bxe5 {[%emt 0:00:12]} 34. Nc6 {[%emt 0:00:08]} Bf6 {[%emt 0:00:53]} 35. b4 {[%emt 0:00:45]} Ra8 {[%emt 0:00:51]} 36. Ra7 {[%emt 0:02:04]} Rxa7 {[%emt 0:00:18]} 37. Nxa7 {[%emt 0:00:00]} Nd5 {[%emt 0:01:36]} 38. b5 {[%emt 0:00:58]} Nb6 {[%emt 0:00:44]} 39. Bb3 {[%emt 0:00:43]} Kf8 {[%emt 0:00:23]} 40. Nc6 {[%emt 0:01:32]} Ke8 {[%emt 0:00:40]} 41. Nb4 {[%emt 0:08:12]} Kd7 {[%emt 0:00:33]} 42. Nd3 {[%emt 0:00:21]} Nd5 {[%emt 0:02:47]} 43. Bc4 {[%emt 0:01:32]} Kc7 {[%emt 0:00:46]} 44. Kg2 {[%emt 0:03:19]} Kb6 {[%emt 0:02:30]} 45. Kh1 {[%emt 0:13:22]} Nc7 {[%emt 0:01:01]} 46. Nf4 {[%emt 0:01:01]} Nxb5 {[%emt 0:00:42]} 47. Nxe6 {[%emt 0:00:08]} fxe6 {[%emt 0:00:14]} 48. Bxe6 {[%emt 0:00:01]} Nd4 {[%emt 0:13:09]} 49. Bg8 {[%emt 0:00:24]} h6 {[%emt 0:00:10]} 50. Bf7 {[%emt 0:01:19]} g5 {[%emt 0:00:15]} 51. h4 {[%emt 0:01:54]} gxh4 {[%emt 0:02:53]} 52. Bd5 {[%emt 0:00:59]} Kc5 {[%emt 0:00:08]} 53. Ba8 {[%emt 0:00:20]} Kc4 {[%emt 0:00:28]} 54. Be4 {[%emt 0:02:44]} Kc3 {[%emt 0:01:18]} 55. Kg2 {[%emt 0:00:38]} Kd2 {[%emt 0:00:10]} 56. Bb7 {[%emt 0:00:16]} Bg5 {[%emt 0:01:21]} 57. Ba6 {[%emt 0:00:23]} Ne6 {[%emt 0:00:26]} 58. Bc8 {[%emt 0:02:44]} Nf4+ {[%emt 0:00:07]} 59. Kg1 {[%emt 0:00:13]} Ke1 {[%emt 0:00:34]} 60. Bf5 {[%emt 0:00:55]} Bf6 {[%emt 0:00:23]} 61. Bd7 {[%emt 0:00:32]} Bd4 {[%emt 0:00:12]} 62. Bc6 {[%emt 0:01:07]} Bxf2+ {[%emt 0:00:07]} 63. Kh2 {[%emt 0:00:05]} Bg3+ {[%emt 0:00:17]} 64. Kh1 {[%emt 0:00:25]} Kf2 {[%emt 0:00:48]} 65. Bg2 {[%emt 0:00:59]} Ng6 {[%emt 0:00:42]} 66. Bc6 {[%emt 0:00:32]} Ne5 {[%emt 0:00:13]} 67. Bb5 {[%emt 0:00:40]} Bf4 {[%emt 0:00:07]} 68. Ba6 {[%emt 0:00:42]} Kg3 {[%emt 0:00:07]} 69. Be2 {[%emt 0:00:07]} h3 {[%emt 0:00:18]} 70. Bb5 {[%emt 0:01:13]} Ng4 {[%emt 0:00:15]} 0-1

[Event "9th Amsterdam Science Park A 2019"]
[Site "Amsterdam"]
[Date "2019.07.13"]
[Round "8.7"]
[White "Wunnink, Michael"]
[Black "Baarslag, Ed"]
[Result "1-0"]
[ECO "E04"]
[WhiteElo "2214"]
[BlackElo "2220"]
[Annotator "NA"]
[PlyCount "39"]
[EventDate "2019.07.06"]
[EventType "swiss"]
[EventCountry "NED"]
[SourceTitle "playchess.com"]
[Source "ChessBase"]
[SourceQuality "1"]
[TimeControl "40/5400+30:1800+30"]

1. d4 {[%emt 0:00:00]} d5 {[%emt 0:00:09]} 2. c4 {[%emt 0:00:00]} e6 {[%emt 0:00:12]} 3. Nf3 {[%emt 0:00:51]} Nf6 {[%emt 0:00:24]} 4. g3 {[%emt 0:00:50]} dxc4 {[%emt 0:03:12]} 5. Bg2 {[%emt 0:00:41]} Bd7 {[%emt 0:01:47]} 6. Ne5 {[%emt 0:00:51]} Bc6 {[%emt 0:00:52]} 7. Nxc6 {[%emt 0:00:07]} Nxc6 {[%emt 0:00:06]} 8. O-O {[%emt 0:01:35]} Nxd4 {[%emt 0:09:50]} 9. Bxb7 {[%emt 0:01:55]} Rb8 {[%emt 0:01:51]} 10. Bg2 {[%emt 0:01:03]} Qd7 {[%emt 0:03:28]} 11. e3 {[%emt 0:17:43]} Nf5 {[%emt 0:01:55]} 12. Qc2 {[%emt 0:01:14]} Qb5 {[%emt 0:03:51]} 13. Nd2 {[%emt 0:17:34]} Bc5 {[%emt 0:06:01]} 14. b4 {[%emt 0:08:45]} Be7 {[%emt 0:15:51]} 15. a4 {[%emt 0:01:28]} Qa6 {[%emt 0:01:36]} 16. b5 {[%emt 0:03:46]} Qc8 {[%emt 0:05:06]} 17. Nxc4 {[%emt 0:01:07]} Nd7 {[%emt 0:03:43]} 18. Na5 {[%emt 0:05:07]} O-O {[%emt 0:04:41]} 19. Nc6 {[%emt 0:00:46]} a5 {[%emt 0:08:43]} 20. Qxf5 {[%emt 0:05:39]} 1-0